[Event "Mitropa Cup Open 2024"]
[Site "Apolda"]
[Date "2024.02.23"]
[Round "9.14"]
[White "Haring, Filip"]
[Black "Baenziger, Fabian"]
[Result "0-1"]
[ECO "C17"]
[WhiteElo "2432"]
[BlackElo "2414"]
[Annotator "TA"]
[PlyCount "86"]
[EventDate "2024.02.15"]
[EventType "team-tourn"]
[EventCountry "GER"]
[SourceTitle "playchess.com"]
[Source "ChessBase"]
[SourceQuality "1"]
[WhiteTeam "Slovakia"]
[BlackTeam "Switzerland"]
[WhiteTeamCountry "SVK"]
[BlackTeamCountry "SUI"]
[TimeControl "40/5400+30:1800+30"]

{[%evp 17,86,-13,-4,-11,-12,-16,-12,-22,-16,-29,-20,-84,-77,-66,-72,-76,-95,-75,-69,-82,-53,-53,-70,-243,-93,-130,-122,-290,-278,-420,-335,-329,-329,-331,-322,-416,-247,-281,-260,-290,-275,-294,-224,-228,-228,-219,-191,-212,-150,-211,-131,-163,-183,-135,-142,-325,-298,-400,-403,-469,-407,-489,-472,-554,-564,-29970,-697,-29974,-29974,-29977,-29975]} 1. e4 {[%emt 0:00:04]} e6 {[%emt 0:00:14]} 2. d4 {[%emt 0:00:21]} d5 {[%emt 0:00:05]} 3. Nc3 {[%emt 0:00:16]} Bb4 {[%emt 0:00:46]} 4. e5 {[%emt 0:03:05]} c5 {[%emt 0:00:19]} 5. Bd2 {[%emt 0:01:21]} Ne7 {[%emt 0:01:00]} 6. Nb5 {[%emt 0:01:29]} Bxd2+ {[%emt 0:00:48]} 7. Qxd2 {[%emt 0:00:06]} O-O {[%emt 0:00:56]} 8. dxc5 {[%emt 0:00:57]} Nd7 {[%emt 0:06:12][%cal Bb8d7,Bd7c5,Bc5e4][%mdl 32]} 9. f4 {[%emt 0:05:12]} Nxc5 {[%emt 0:05:32]} 10. O-O-O {[%emt 0:11:44]} Ne4 {[%emt 0:14:07]} 11. Qe1 {[%emt 0:00:19]} Qb6 {[%emt 0:00:41]} 12. Nd4 {[%emt 0:00:45] The position is equal.} Nc6 {[%emt 0:12:42]} 13. Ngf3 {[%emt 0:02:13]} Bd7 {[%emt 0:00:05]} 14. a3 {[%emt 0:04:58] Against Nb4} (14. Bd3 $11) 14... Rac8 $17 {[%emt 0:03:01]} 15. h4 {[%emt 0:19:57]} Na5 {[%emt 0:17:50]} 16. Bd3 {[%emt 0:03:38]} Nc4 {[%emt 0:07:02] Black is more active.} 17. Bxc4 {[%emt 0:03:52]} Rxc4 $40 {[%emt 0:00:10][%mdl 128] Black has some attack.} 18. b3 {[%emt 0:07:51] Inhibits Ba4.} Rc5 {[%emt 0:04:07]} 19. h5 {[%emt 0:07:56]} Rfc8 {[%emt 0:00:53][%cal Oc5c2]} 20. Rh3 $2 {[%emt 0:04:53] [#]} ({Only move:} 20. Kb2 $1 $15) 20... a5 {[%emt 0:04:26]} (20... Qc7 $1 $19 {[%cal Rc5c2] and Black stays clearly on top. White must now prevent ...Rxc2+.} 21. Rd2 Qa5) 21. Kb2 {[%emt 0:10:03]} a4 {[%emt 0:01:02][%cal Oc5c2] ...Rxc2+! is the strong threat.} 22. Qb4 $2 {[%emt 0:03:13]} (22. b4 $17 {is the only way for White.}) 22... Qc7 $19 {[%emt 0:00:57][%cal Rc5c2] ( -> ...Rxc2+)} 23. Ne1 {[%emt 0:01:00]} (23. Rc1 $142) 23... Nf2 {[%emt 0:02:05][%csl LRd1,LRh3]} 24. Rd2 {[%emt 0:02:21]} Nxh3 {[%emt 0:00:55]} 25. gxh3 {[%emt 0:00:02]} h6 {[%emt 0:09:24]} 26. Rg2 {[%emt 0:00:40]} Be8 {[%emt 0:02:53]} (26... Rc3 $142 27. Nef3 axb3) 27. Qd2 {[%emt 0:01:02]} axb3 {[%emt 0:02:33]} 28. cxb3 {[%emt 0:00:05]} Rc3 {[%emt 0:00:03]} 29. Nec2 {[%emt 0:03:33]} Rxh3 {[%emt 0:00:58]} 30. Rxg7+ {[%emt 0:00:16]} Kxg7 {[%emt 0:00:04]} 31. Qg2+ {[%emt 0:00:04]} Kf8 {[%emt 0:00:29]} 32. Qxh3 {[%emt 0:00:01]} Qe7 {[%emt 0:01:09]} 33. a4 {[%emt 0:02:21]} (33. Qg4 $17) 33... Ra8 {[%emt 0:00:11]} 34. Qg3 {[%emt 0:00:22]} Bd7 {[%emt 0:02:12]} 35. Qd3 {[%emt 0:01:01]} Kg8 {[%emt 0:00:21] Prevents Qh7+.} 36. Ne3 $2 {[%emt 0:00:40] [#]} (36. Qg3+ $17 Kh8 37. Qc3) 36... Qh4 {[%emt 0:00:41][%csl LRf4,LRh5]} 37. f5 {[%emt 0:00:38]} Qxh5 {[%emt 0:00:30]} 38. Qd2 {[%emt 0:00:35]} Qg5 {[%emt 0:00:41]} ({Not} 38... exf5 39. Nxd5 Qg5 40. Nf6+ Kg7 41. Qd3 $17 (41. Qxg5+ $2 hxg5 42. Nxd7 Kg6 $19)) 39. Qf2 {[%emt 0:00:25]} Rc8 {[%emt 0:00:27]} 40. a5 {[%emt 0:00:36]} exf5 {[%emt 0:00:54]} 41. Nxd5 {[%emt 0:02:59]} Qc1+ {[%emt 0:06:26]} 42. Ka2 {[%emt 0:00:11]} Rc5 {[%emt 0:00:05][%csl LRa5,LRd5][%cal Rc5a5]} 43. b4 {[%emt 0:04:54]} Qc4+ {[%emt 0:00:20] Weighted Error Value: White=0.58/Black=0.27 (precise) .  Loses game:     	White=3     	---        Mistake:       	White=3     	Black=2      Inaccurate:     	White=4     	Black=2      OK:         	White=7     	Black=14     Best:        	White=3     	Black=3} (43... Rxd5 $2 44. Qg2+ Kh7 45. Qxd5 Qd2+ 46. Kb1 Qxb4+ 47. Kc2 $19) 0-1

[Event "Mitropa Cup Open 2024"]
[Site "Apolda"]
[Date "2024.02.23"]
[Round "9.15"]
[White "Fecker, Noah"]
[Black "Turcan, Richard"]
[Result "0-1"]
[ECO "B67"]
[WhiteElo "2397"]
[BlackElo "2393"]
[Annotator "TA"]
[PlyCount "76"]
[EventDate "2024.02.15"]
[EventType "team-tourn"]
[EventCountry "GER"]
[SourceTitle "playchess.com"]
[Source "ChessBase"]
[SourceQuality "1"]
[WhiteTeam "Switzerland"]
[BlackTeam "Slovakia"]
[WhiteTeamCountry "SUI"]
[BlackTeamCountry "SVK"]
[TimeControl "40/5400+30:1800+30"]

{[%evp 43,75,72,64,-109,-87,-190,-93,-145,-35,-306,-290,-429,-429,-377,-228,-379,-147,-141,-141,-141,-150,-654,-639,-603,-581,-29995,83,-29996,-29997,-29997,-29998,-29998,-29999,-29999]} 1. e4 {[%emt 0:00:03]} c5 {[%emt 0:00:07]} 2. Nf3 {[%emt 0:00:06]} Nc6 {[%emt 0:00:31]} 3. d4 {[%emt 0:00:41]} cxd4 {[%emt 0:00:05]} 4. Nxd4 {[%emt 0:00:04]} Nf6 {[%emt 0:00:47]} 5. Nc3 {[%emt 0:00:37]} d6 {[%emt 0:00:09]} 6. Bg5 {[%emt 0:01:03]} e6 {[%emt 0:01:25]} 7. Qd2 {[%emt 0:01:25]} a6 {[%emt 0:01:00]} 8. O-O-O {[%emt 0:00:46]} Bd7 {[%emt 0:01:04]} 9. Kb1 {[%emt 0:01:23]} Be7 {[%emt 0:16:04]} 10. Nxc6 {[%emt 0:05:04]} Bxc6 {[%emt 0:00:31]} 11. f3 {[%emt 0:00:24]} Qc7 {[%emt 0:06:27]} 12. h4 {[%emt 0:05:57]} h5 {[%emt 0:04:14]} 13. Ne2 {[%emt 0:06:06]} b5 {[%emt 0:03:24]} 14. Nd4 {[%emt 0:01:59]} Bd7 {[%emt 0:01:09]} 15. Bd3 {[%emt 0:03:45]} b4 {[%emt 0:11:04]} 16. Rhe1 {[%emt 0:08:52]} Rb8 {[%emt 0:07:11]} 17. f4 {[%emt 0:05:58]} Qb6 {[%emt 0:09:17]} 18. Nf3 {[%emt 0:06:11]} a5 {[%emt 0:10:57]} 19. Ka1 {[%emt 0:04:17]} a4 {[%emt 0:03:26]} 20. e5 {[%emt 0:04:14]} a3 {[%emt 0:04:59]} 21. Bc4 {[%emt 0:11:47]} d5 {[%emt 0:03:55]} 22. Bb3 {[%emt 0:07:12]} (22. exf6 $18 {and White stays clearly on top.} gxf6 23. Bb3 fxg5 24. hxg5) 22... Ng4 $16 {[%emt 0:07:22] [#]} 23. f5 $2 {[%emt 0:04:34]} (23. Bxe7 $1 $14 {was the only good move.} Kxe7 24. f5) 23... Bc5 {[%emt 0:01:02]} 24. Qf4 {[%emt 0:07:14]} (24. bxa3 $17 bxa3 (24... exf5 25. Qxd5 Be6 26. Ba4+ Kf8 27. Qd8+ Rxd8 28. Rxd8+ $14) 25. Rb1) 24... axb2+ {[%emt 0:02:18]} (24... exf5 25. Rxd5 (25. Bxd5 O-O $11) 25... Be6 26. Rd6 Bxd6 27. Ba4+ (27. exd6 O-O $11) 27... Kf8 28. exd6 $11) (24... O-O $19 {is more deadly. ...axb2+ would now be deadly.} 25. f6 g6) 25. Kb1 $17 {[%emt 0:00:31]} O-O {[%emt 0:01:56]} (25... exf5 26. Rxd5 Be6 27. Rd6 Bxd6 28. exd6 $16) ({Black should play} 25... Ra8 $1 $17 {Threatens to win with ...0-0.} 26. fxe6 Bxe6 (26... fxe6 27. Rxd5 exd5 28. e6 $14)) 26. f6 $2 {[%emt 0:00:23][%mdl 8192]} (26. Nh2 $1 $15 Nxh2 (26... exf5 27. Nxg4 hxg4 28. Bf6 $11) 27. Bf6) 26... g6 $19 {[%emt 0:00:52]} 27. Nh2 {[%emt 0:01:17]} (27. Kxb2 {was necessary.} Bf2 28. Rf1) 27... Nxh2 $19 {[%emt 0:00:41]} 28. Qxh2 {[%emt 0:00:02]} Qa7 {[%emt 0:01:48]} 29. g4 $2 {[%emt 0:04:05]} (29. Qh3 {was called for.} Ba4 30. Bxa4 Qxa4 31. Qb3) 29... Ra8 $2 {[%emt 0:00:35]} (29... hxg4 $2 30. h5 $18 (30. Kxb2 Ba4 $11)) (29... Rb5 $19 30. Rxd5 (30. Kxb2 $2 Ra5 $19) 30... exd5 31. gxh5 Ra5 (31... gxh5 32. Bh6 $16) 32. hxg6 Rxa2 (32... fxg6 $2 33. Bxd5+ Rf7 34. e6 $18) 33. Bxa2 (33. gxf7+ Rxf7 34. Bxa2 b3 35. cxb3 Bf5+) 33... Ra8 34. gxf7+ (34. Bxd5 $2 Qa1#) 34... Kh7 35. f8=N+ (35. Kxb2 Qxa2+ 36. Kc1 Qa1+ 37. Kd2 Qc3+ 38. Kd1 Ra1+ 39. Bc1 Bg4+ 40. Re2 Qd4+ 41. Ke1 Rxc1#) 35... Bxf8 36. Kxb2 Qd4+ (36... Qxa2+ 37. Kc1 Qa1+ 38. Kd2 Qc3+ 39. Ke2 Qxc2+ 40. Bd2 Qe4+ 41. Kf1 Bb5+ 42. Kf2 Bc5+ 43. Kg3 Ra3+ 44. Re3 Rxe3+ 45. Bxe3 Qxe3+ 46. Kg2 Qf2+ 47. Kh3 Bd7+ 48. e6 Bxe6#) 37. Kb1 b3 38. c3 Qxc3 (38... bxa2+ 39. Ka1 Qxc3+ 40. Qb2 Qxe1+ 41. Bc1 Rc8 42. Kxa2 Rxc1 43. Qd4 Qa5+ 44. Qa4 Qxa4+ 45. Kb2 Qc2#) 39. h5 Bf5+ (39... Qxe1+ 40. Bc1 Bf5+ 41. Kb2 Ba3+ 42. Ka1 Qxc1+ 43. Bb1 Qxb1#) 40. Re4 Bxe4+ 41. Qc2 bxc2+ 42. Kc1 Ba3#) 30. gxh5 $17 {[%emt 0:00:51] [#]} (30. Kxb2 Bd4+ (30... hxg4 $2 31. h5 $18) 31. Kb1 Bc3 $17) 30... Ba4 $1 {[%emt 0:00:12]} 31. Qh3 {[%emt 0:00:23] [#]} (31. Kxb2 Bxb3 32. Kc1 Qa3+ (32... Qxa2 $2 33. Rd3 $19) (32... Bxa2 $2 33. Qg3 $19) 33. Kd2 Bxc2 $19 (33... Qxa2 $2 34. Rc1 $19)) 31... Bd4 $1 {[%emt 0:00:36]} (31... gxh5 32. Be3 Rfd8 33. Qg3+ (33. Kxb2 Bxe3 34. Qg3+ Kf8 $18) 33... Kf8 34. Qg7+ (34. Kxb2 Bxb3 35. Qg7+ Ke8 $14) (34. Bxa4 Qxa4 35. Bxc5+ Ke8 $18) 34... Ke8 35. Qg8+ Kd7 36. Qxf7+ Kc8 37. Qxe6+ (37. Qxh5 Bxb3 38. a3 Ba2+ 39. Kxa2 Qxa3+ 40. Kb1 Qa2#) 37... Kb8 38. Bxc5 (38. Rxd5 Rxd5 39. Bxd5 Bxe3 $18) 38... Qxc5 39. Rxd5 (39. Bxd5 $2 Qxc2#) 39... Rxd5 40. Qxd5 $18) (31... Bxb3 32. Qxb3 Qc7 (32... gxh5 33. Bh6 $11) 33. Rd3 $17 (33. Kxb2 $2 Ra3 $19) (33. Qxb2 Ra6 $17) (33. hxg6 Ra3 $17)) 32. Bxa4 $2 {[%emt 0:03:37]} (32. hxg6 Bc3 33. Bxd5 (33. gxf7+ $2 Rxf7 34. Bxd5 exd5 $19) 33... exd5 34. gxf7+ Kh8 $19 (34... Rxf7 $2 35. Be3 $19)) (32. Rxd4 $17 Bxb3 33. Qxb3 Qxd4 34. hxg6 fxg6 35. Qxb2) 32... Qxa4 $19 {[%emt 0:00:07]} 33. Qb3 {[%emt 0:00:02]} Bc3 {[%emt 0:01:01]} 34. hxg6 {[%emt 0:01:38]} Qxa2+ {[%emt 0:00:25]} 35. Qxa2 {[%emt 0:00:05]} Rxa2 {[%emt 0:00:06]} 36. gxf7+ {[%emt 0:00:06]} Kxf7 {[%emt 0:00:09]} 37. Kxa2 {[%emt 0:00:02]} Ra8+ {[%emt 0:00:06]} 38. Kb3 {[%emt 0:00:02]} Ra3# {[%emt 0:02:28]} 0-1

[Event "Mitropa Cup Open 2024"]
[Site "Apolda"]
[Date "2024.02.23"]
[Round "9.16"]
[White "Bochnicka, Vladimir"]
[Black "Gallagher, Joseph G."]
[Result "1-0"]
[ECO "B31"]
[WhiteElo "2398"]
[BlackElo "2427"]
[Annotator "TA"]
[PlyCount "71"]
[EventDate "2024.02.15"]
[EventType "team-tourn"]
[EventCountry "GER"]
[SourceTitle "playchess.com"]
[Source "ChessBase"]
[SourceQuality "1"]
[WhiteTeam "Slovakia"]
[BlackTeam "Switzerland"]
[WhiteTeamCountry "SVK"]
[BlackTeamCountry "SUI"]
[TimeControl "40/5400+30:1800+30"]

{[%evp 11,71,18,19,17,23,29,25,25,24,11,12,10,13,0,0,0,0,-10,-10,-57,-32,-64,-68,-75,-70,-83,-75,-84,-82,-74,-79,-73,-93,-109,0,0,0,0,0,0,0,0,71,66,39,31,1404,1327,1227,0,1720,1539,2353,1920,2691,1525,29982,1533,1063,1050,29985,1600]} 1. e4 {[%emt 0:00:04]} c5 {[%emt 0:00:16]} 2. Nf3 {[%emt 0:00:07]} Nc6 {[%emt 0:01:52]} 3. Bb5 {[%emt 0:00:26]} g6 {[%emt 0:00:34]} 4. O-O {[%emt 0:00:26]} Bg7 {[%emt 0:00:54]} 5. Re1 {[%emt 0:02:18]} e5 {[%emt 0:14:08]} 6. Bxc6 {[%emt 0:00:47]} dxc6 {[%emt 0:00:50]} 7. a4 {[%emt 0:01:53]} Qc7 {[%emt 0:11:43]} 8. d3 {[%emt 0:02:00]} a5 {[%emt 0:05:04]} 9. Na3 {[%emt 0:04:31] White has an edge.} Nf6 {[%emt 0:05:13]} 10. Bd2 {[%emt 0:14:08]} O-O {[%emt 0:01:53]} 11. Nc4 {[%emt 0:02:20]} Re8 {[%emt 0:03:49]} 12. h3 {[%emt 0:12:19]} Nd7 {[%emt 0:03:40][%cal Bf6d7,Bd7f8,Bf8e6,Be6f4][%mdl 32]} 13. Nh2 {[%emt 0:00:22]} Nf8 {[%emt 0:01:24]} 14. Qf3 {[%emt 0:03:56]} Ne6 {[%emt 0:05:58]} 15. c3 {[%emt 0:00:29]} (15. Qd1 $11) 15... b5 $15 {[%emt 0:01:56]} 16. Na3 {[%emt 0:18:24]} Rb8 {[%emt 0:00:33]} 17. Ng4 {[%emt 0:03:07]} Nf4 {[%emt 0:03:59]} (17... bxa4 $6 18. Nc4 $14) 18. d4 {[%emt 0:03:37]} cxd4 {[%emt 0:01:00]} (18... bxa4 19. dxe5 (19. dxc5 h5 $17) 19... h5 20. Nf6+ (20. Bxf4 hxg4 21. hxg4 Be6 $11) 20... Bxf6 21. exf6 $16 (21. Bxf4 Bxe5 22. Bxe5 Rxe5 $14)) 19. cxd4 {[%emt 0:00:26]} Bxg4 {[%emt 0:01:48]} (19... bxa4 20. Nxe5 Ne6 21. Bxa5 $14) 20. hxg4 {[%emt 0:00:56] [#]} Ne6 $1 {[%emt 0:02:18]} (20... bxa4 21. Nc4 $14) 21. d5 {[%emt 0:01:50]} Nd4 {[%emt 0:03:27]} 22. Qd3 {[%emt 0:02:57]} b4 {[%emt 0:07:27]} (22... bxa4 $17 {aiming for ...cxd5.} 23. Bc3 cxd5 24. exd5 Rec8) 23. Nc2 $1 $11 {[%emt 0:02:31]} cxd5 {[%emt 0:00:55]} 24. Nxd4 {[%emt 0:00:08]} exd4 {[%emt 0:00:10]} 25. exd5 {[%emt 0:00:10]} Rxe1+ {[%emt 0:04:29]} 26. Rxe1 {[%emt 0:00:33]} Qd7 {[%emt 0:00:21]} (26... h6 $11 {keeps the balance.}) 27. Bf4 $36 {[%emt 0:03:03][%mdl 2048] White has the initiative. White is more active.} Rd8 {[%emt 0:00:11]} 28. Qb5 {[%emt 0:03:06] [#] White wants to mate with Qxd7.} Qxg4 {[%emt 0:06:34][%mdl 8192]} (28... Bf8 $14) 29. Re8+ $18 {[%emt 0:03:14]} (29. Qxa5 Qc8 30. d6 (30. Qxb4 Rxd5 31. Rc1 Qe8 $16) 30... Bf6 $18) 29... Rxe8 {[%emt 0:00:04]} 30. Qxe8+ {[%emt 0:00:04][%mdl 4096] Endgame. KQB-KQB} Bf8 {[%emt 0:00:05]} 31. g3 {[%emt 0:00:39]} Kg7 {[%emt 0:12:38] Inhibits Bh6+.} 32. d6 {[%emt 0:01:04]} Bxd6 {[%emt 0:00:44]} 33. Bxd6 {[%emt 0:00:08]} d3 {[%emt 0:00:29]} 34. Be5+ {[%emt 0:01:15]} (34. Bf8+ $142 Kf6 35. Qe7+ (35. Qd8+ Kf5 $18) 35... Kf5 36. Qxf7+ Ke5 37. Qc7+ (37. Qxh7 Qe2 $18) 37... Kd5 38. Qc5+ (38. Qxa5+ Ke6 $18) 38... Ke6 39. Qd6+ (39. Qxa5 d2 $16) (39. Qc8+ Kf7 $18) 39... Kf5 40. Qd7+ (40. Qxd3+ Kf6 $18) 40... Kg5 41. f4+ (41. Qxd3 Qe6 $18) 41... Qxf4 42. Be7+ (42. gxf4+ Kxf4 43. Bh6+ g5 44. Qd5 d2 45. Bxg5+ Kg4 46. Bxd2 h6 47. Qe4+ Kh3 48. Qf5+ Kh4 49. Be1#) 42... Qf6 43. Qd5+ (43. Bxf6+ Kxf6 44. Qxd3 h5 $18) 43... Kg4 44. Bxf6) 34... Kh6 {[%emt 0:00:30]} 35. Qxf7 {[%emt 0:00:33] Threatening mate with f3.} d2 {[%emt 0:00:23]} 36. Qf4+ {[%emt 0:00:09] Weighted Error Value: White=0.09 (flawless) /Black=0.46.  Loses game:     	---       	Black=1      Mistake:       	White=1     	Black=2      Inaccurate:     	White=1     	Black=1      OK:         	White=8     	Black=12     Best:        	White=3     	Black=1      Strong:       	White=1     	Black=1} (36. Qg7+ $142 Kg5 37. Bf6+ (37. Qxh7 $2 {too greedy.} d1=Q+ 38. Kh2 Kf5 $19) 37... Kf5 38. Qd7+ Kxf6 39. Qxg4 g5 40. Qd4+ Kg6 41. Qxd2) 1-0

[Event "Mitropa Cup Open 2024"]
[Site "Apolda"]
[Date "2024.02.23"]
[Round "9.17"]
[White "Vykouk, Jan"]
[Black "Svane, Rasmus"]
[Result "1/2-1/2"]
[ECO "B13"]
[WhiteElo "2493"]
[BlackElo "2637"]
[Annotator "TA"]
[PlyCount "61"]
[EventDate "2024.02.15"]
[EventType "team-tourn"]
[EventCountry "GER"]
[SourceTitle "playchess.com"]
[Source "ChessBase"]
[SourceQuality "1"]
[WhiteTeam "Czech Republic"]
[BlackTeam "Germany"]
[WhiteTeamCountry "CZE"]
[BlackTeamCountry "GER"]
[TimeControl "40/5400+30:1800+30"]

{[%evp 10,61,26,27,27,33,33,29,18,32,197,30,35,18,17,1,19,18,27,7,14,14,20,7,81,0,0,0,24,6,27,-33,-22,-42,-41,-45,-31,-43,-54,-49,-25,-23,0,-16,-25,-9,-17,-28,-24,-27,18,0,-8,-22]} 1. e4 {[%emt 0:00:03]} c6 {[%emt 0:00:07]} 2. d4 {[%emt 0:00:35]} d5 {[%emt 0:00:08]} 3. exd5 {[%emt 0:00:05]} cxd5 {[%emt 0:00:09]} 4. Bd3 {[%emt 0:00:10]} Nc6 {[%emt 0:02:48]} 5. c3 {[%emt 0:00:05]} Qc7 {[%emt 0:01:32]} 6. h3 {[%emt 0:00:24]} e6 {[%emt 0:01:09]} 7. Nf3 {[%emt 0:00:26]} Bd6 {[%emt 0:00:10]} 8. O-O {[%emt 0:00:27]} Nge7 {[%emt 0:00:07] White has an edge.} 9. Re1 {[%emt 0:00:51]} O-O {[%emt 0:00:42] [#]} 10. b3 $2 {[%emt 0:00:26]} (10. Bxh7+ $1 $18 Kxh7 11. Ng5+ Kg6 (11... Kg8 $2 12. Qh5 $18) 12. Na3) 10... Rd8 $11 {[%emt 0:11:08]} 11. Bb2 {[%emt 0:00:26]} Ng6 {[%emt 0:10:57]} 12. c4 {[%emt 0:01:50]} Be7 {[%emt 0:03:23]} 13. Nc3 {[%emt 0:02:39]} Bf6 {[%emt 0:06:19]} 14. cxd5 {[%emt 0:23:08]} exd5 {[%emt 0:01:26]} 15. Rc1 {[%emt 0:00:05][%cal Of3e5]} Nf4 {[%emt 0:12:27]} 16. Bb1 {[%emt 0:00:43][%cal Of3e5]} Ne6 {[%emt 0:03:19] [#]} (16... g6 $11) 17. Na4 {[%emt 0:03:07]} (17. Ne5 $1 $16) 17... Qf4 {[%emt 0:09:16][%cal Rc6d4]} 18. g3 {[%emt 0:02:57]} Qd6 {[%emt 0:06:54]} (18... Qh6 $5) 19. h4 {[%emt 0:00:21]} g6 {[%emt 0:02:26]} 20. a3 {[%emt 0:09:26]} (20. Nc5 $11) 20... b6 $15 {[%emt 0:05:46]} 21. b4 {[%emt 0:03:31]} Bd7 {[%emt 0:02:30]} (21... Ba6 {with more complications.} 22. Kg2 Rac8 23. h5 Bb5) 22. Bc2 {[%emt 0:00:06]} Re8 {[%emt 0:02:11]} 23. Bb3 {[%emt 0:01:37]} Bg7 {[%emt 0:04:42]} 24. Qd2 {[%emt 0:02:58]} Nc7 {[%emt 0:00:56]} 25. Ne5 {[%emt 0:07:18]} Ne6 {[%emt 0:00:58][%cal Oe6d4]} 26. f4 {[%emt 0:03:00]} Rac8 {[%emt 0:01:38]} 27. Rcd1 {[%emt 0:02:11]} h5 {[%emt 0:01:38]} 28. Qg2 {[%emt 0:02:48]} Ne7 {[%emt 0:00:42]} 29. Nc3 {[%emt 0:00:52]} Bc6 {[%emt 0:03:10]} 30. Kh2 {[%emt 0:05:15]} (30. Nxc6 $5 Qxc6 31. Ba4 $11 (31. Nxd5 Nf5 $11) (31. Bxd5 Nxd5 32. Nxd5 Qd7 $11)) 30... Red8 {[%emt 0:01:29]} 31. Rd2 {[%emt 0:01:34] Weighted Error Value: White=0.19 (very precise) /Black=0.11 (very precise) .  Missed win:     	White=1     	---        Mistake:       	White=2     	Black=1      Inaccurate:     	White=1     	Black=1      OK:         	White=9     	Black=15} 1/2-1/2

[Event "Mitropa Cup Open 2024"]
[Site "Apolda"]
[Date "2024.02.23"]
[Round "9.18"]
[White "Donchenko, Alexander"]
[Black "Stalmach, Richard"]
[Result "0-1"]
[ECO "A07"]
[WhiteElo "2643"]
[BlackElo "2433"]
[Annotator "RC"]
[PlyCount "82"]
[EventDate "2024.02.15"]
[EventType "team-tourn"]
[EventCountry "GER"]
[SourceTitle "playchess.com"]
[Source "ChessBase"]
[SourceQuality "1"]
[WhiteTeam "Germany"]
[BlackTeam "Czech Republic"]
[WhiteTeamCountry "GER"]
[BlackTeamCountry "CZE"]
[TimeControl "40/5400+30:1800+30"]

1. Nf3 {[%emt 0:00:02]} Nf6 {[%emt 0:01:26]} 2. g3 {[%emt 0:02:38]} d5 {[%emt 0:01:04]} 3. Bg2 {[%emt 0:00:07]} g6 {[%emt 0:00:06]} 4. c4 {[%emt 0:03:53]} d4 {[%emt 0:03:12]} 5. b4 {[%emt 0:02:22]} Bg7 {[%emt 0:04:52]} 6. Bb2 {[%emt 0:09:22]} c5 {[%emt 0:01:00]} 7. O-O {[%emt 0:15:00]} O-O {[%emt 0:02:14]} 8. d3 {[%emt 0:03:22]} Nfd7 {[%emt 0:02:02]} 9. Nbd2 {[%emt 0:01:27]} Nc6 {[%emt 0:02:37]} 10. b5 {[%emt 0:03:48]} Nce5 {[%emt 0:03:41]} 11. Ne1 {[%emt 0:03:21]} Qc7 {[%emt 0:03:41]} 12. Qb3 {[%emt 0:08:39]} Ng4 {[%emt 0:02:37]} 13. Nc2 {[%emt 0:01:29]} h5 {[%emt 0:05:27]} 14. h3 {[%emt 0:07:38]} Nh6 {[%emt 0:00:59]} 15. Nf3 {[%emt 0:02:16]} e5 {[%emt 0:02:31]} 16. Rae1 {[%emt 0:01:08]} a5 {[%emt 0:17:17]} 17. e3 {[%emt 0:03:44]} Rb8 {[%emt 0:03:00]} 18. exd4 {[%emt 0:06:03]} cxd4 {[%emt 0:01:04]} 19. b6 {[%emt 0:01:05]} Nxb6 {[%emt 0:03:40]} 20. Nxe5 {[%emt 0:03:43]} Bxe5 {[%emt 0:00:14]} 21. Rxe5 {[%emt 0:00:06]} Qxe5 {[%emt 0:00:07]} 22. Qxb6 {[%emt 0:00:57]} Nf5 {[%emt 0:03:16]} 23. Re1 {[%emt 0:01:08]} Qd6 {[%emt 0:00:53]} 24. Qxa5 {[%emt 0:01:34]} Be6 {[%emt 0:02:30]} 25. Ba3 {[%emt 0:04:12]} Qd8 {[%emt 0:00:30]} 26. Qc5 {[%emt 0:01:45]} Re8 {[%emt 0:00:28]} 27. Bb2 {[%emt 0:01:24]} b6 {[%emt 0:02:32]} 28. Qb4 {[%emt 0:01:14]} Qd7 {[%emt 0:04:13]} 29. a4 {[%emt 0:03:42]} Red8 {[%emt 0:08:34]} 30. Qb5 {[%emt 0:04:19]} Qc7 {[%emt 0:02:21]} 31. Qb3 {[%emt 0:01:17]} Rd7 {[%emt 0:04:14]} 32. Re4 {[%emt 0:00:51]} Nxg3 {[%emt 0:02:20]} 33. fxg3 {[%emt 0:00:32]} Qxg3 {[%emt 0:00:04]} 34. Ne1 {[%emt 0:02:48]} Bxh3 {[%emt 0:01:03]} 35. Bc1 {[%emt 0:00:30]} f5 {[%emt 0:04:45]} 36. Re2 {[%emt 0:00:31]} Bg4 {[%emt 0:00:29]} 37. Re6 {[%emt 0:00:31]} f4 {[%emt 0:00:07]} 38. c5 {[%emt 0:00:08]} Kh7 {[%emt 0:01:59]} 39. c6 {[%emt 0:00:53]} f3 {[%emt 0:01:08]} 40. cxd7 {[%emt 0:00:30]} f2+ {[%emt 0:00:25]} 41. Kh1 {[%emt 0:00:43]} Qh4+ {[%emt 0:00:06]} 0-1